bitfinex-derivatives/quotes_BTCF0:USTF0_20251225
["timestamp","ask_amount","ask_price","bid_price","bid_amount"]
[1766696643264,0.0113809,87928.0,87913.0,0.03]
[1766696643468,0.0113809,87928.0,87910.0,0.08906161]
[1766696643664,0.0113812,87926.0,87910.0,0.11923226]
[1766696644076,0.0113815,87924.0,87910.0,0.10784916]
[1766696645079,0.011381,87927.0,87910.0,0.10784916]
[1766696645264,0.0113813,87925.0,87910.0,0.10784916]
[1766696646084,0.0113813,87925.0,87910.0,0.07484916]
[1766696650077,0.02484481,87924.0,87910.0,0.07484916]
[1766696650275,0.00017065,87928.0,87913.0,0.0113827]
[1766696650480,0.02484571,87927.0,87913.0,0.0413827]
[1766696650682,0.02484571,87926.0,87913.0,0.0413827]
[1766696650875,0.02484571,87925.0,87913.0,0.0113827]
[1766696651181,0.02517283,87924.0,87913.0,0.0113827]
[1766696651385,0.02517283,87923.0,87913.0,0.0113827]
[1766696651577,0.02517283,87922.0,87913.0,0.0113827]
[1766696651777,0.00017065,87928.0,87913.0,0.0113827]
[1766696651979,0.02517203,87927.0,87913.0,0.0113827]
[1766696652180,0.02517203,87926.0,87913.0,0.0113827]
[1766696652382,0.02517203,87925.0,87913.0,0.0413827]
[1766696652684,0.02517203,87924.0,87913.0,0.0413827]
[1766696652885,0.02517203,87923.0,87913.0,0.0113827]
[1766696653184,0.02517203,87922.0,87913.0,0.0113827]
[1766696653386,0.00017065,87928.0,87913.0,0.0113827]
[1766696653584,0.00017065,87928.0,87914.0,0.01137]
[1766696655882,0.0113819,87920.0,87914.0,0.01137]
[1766696658585,0.0113819,87920.0,87910.0,0.00017065]
[1766696658789,0.0113819,87920.0,87910.0,0.03017065]
[1766696659387,0.0611528,87934.0,87910.0,0.03017065]
[1766696659586,0.1579128,87938.0,87914.0,0.0113826]
[1766696659778,0.1579128,87938.0,87923.0,0.016]
[1766696659977,0.0113804,87932.0,87923.0,0.016]
[1766696660278,0.0113804,87932.0,87923.0,0.01]
[1766696662303,0.0611528,87941.0,87926.0,0.011381]
[1766696662493,0.0113787,87945.0,87926.0,0.041381]
[1766696662693,0.0113787,87945.0,87928.0,0.0113808]
[1766696662901,0.0113787,87945.0,87928.0,0.0413808]
[1766696663405,0.01154925,87945.0,87928.0,0.04155145]
[1766696663607,0.011379,87943.0,87928.0,0.04155145]
[1766696665509,0.02505609,87942.0,87928.0,0.04155145]
[1766696665704,0.02505609,87941.0,87928.0,0.04155145]
[1766696665907,0.02505609,87940.0,87928.0,0.04155145]
[1766696666107,0.011379,87943.0,87928.0,0.04155145]
[1766696666108,0.02505609,87939.0,87928.0,0.04155145]
[1766696666308,0.02505609,87938.0,87928.0,0.04155145]
[1766696666498,0.011379,87943.0,87928.0,0.04155145]
[1766696666811,0.02505481,87942.0,87928.0,0.04155145]
[1766696666999,0.02505481,87941.0,87928.0,0.04155145]
[1766696667198,0.057,87947.0,87928.0,0.04155145]
[1766696667199,0.150944,87976.0,87928.0,0.03017065]
[1766696667398,0.0113781,87950.0,87928.0,0.03017065]
[1766696667596,0.0113782,87949.0,87934.0,0.0113799]
[1766696667910,0.00227395,87953.0,87935.0,0.05704]
[1766696668105,0.00227395,87953.0,87935.0,0.08704]
[1766696668300,0.011379,87943.0,87928.0,0.00017065]
[1766696668506,0.011379,87943.0,87929.0,0.05704]
[1766696668804,0.011379,87943.0,87929.0,0.08704]
[1766696670305,0.0113786,87946.0,87929.0,0.08704]
[1766696670809,0.0113786,87946.0,87930.0,0.0113806]
[1766696671907,0.09676,87950.0,87928.0,0.05721065]
[1766696672210,0.09676,87950.0,87928.0,0.08721065]
[1766696672710,0.057,87949.0,87923.0,0.01]
[1766696672908,0.0113798,87937.0,87923.0,0.01]
[1766696673109,0.1081398,87937.0,87923.0,0.01]
[1766696674113,0.09676,87937.0,87923.0,0.01]
[1766696675208,0.0113799,87936.0,87923.0,0.01]
[1766696681713,0.211877,87958.0,87923.0,0.01]
[1766696681916,0.0113786,87946.0,87923.0,0.03]
[1766696682213,0.0248523,87945.0,87930.0,0.0113805]
[1766696682416,0.0248523,87944.0,87930.0,0.0113805]
[1766696682610,0.0248523,87943.0,87930.0,0.0113805]
[1766696682806,0.0248523,87942.0,87930.0,0.0113805]
[1766696683116,0.0113786,87946.0,87930.0,0.0113805]
[1766696683117,0.0248523,87941.0,87930.0,0.0113805]
[1766696683315,0.0248523,87940.0,87930.0,0.0113805]
[1766696683616,0.0248523,87939.0,87930.0,0.0113805]
[1766696683802,0.0248523,87938.0,87930.0,0.0113805]
[1766696684002,0.0113788,87944.0,87930.0,0.0113805]
[1766696684298,0.02485516,87943.0,87930.0,0.0113805]
[1766696684506,0.02485516,87942.0,87930.0,0.0113805]
[1766696684815,0.02485516,87941.0,87930.0,0.0113805]
[1766696685012,0.0113788,87944.0,87930.0,0.0113805]
[1766696685013,0.02485516,87940.0,87930.0,0.0113805]
[1766696685211,0.02485516,87939.0,87930.0,0.0113805]
[1766696685517,0.02485516,87938.0,87930.0,0.0113805]
[1766696685718,0.02485516,87937.0,87930.0,0.0113805]
[1766696685911,0.0113788,87944.0,87930.0,0.0113805]
[1766696686113,0.02485914,87943.0,87931.0,0.0113803]
[1766696686312,0.02485914,87942.0,87931.0,0.0113803]
[1766696686511,0.02485914,87941.0,87931.0,0.0113803]
[1766696686708,0.0113785,87947.0,87923.0,0.01]
[1766696686709,0.02485914,87940.0,87933.0,0.0113802]
[1766696687018,0.02485914,87939.0,87923.0,0.01]
[1766696687215,0.02485914,87938.0,87932.0,0.0113803]
[1766696687405,0.0113781,87950.0,87924.0,0.05704]
[1766696687604,0.0248667,87949.0,87924.0,0.08704]
[1766696687801,0.0684181,87950.0,87935.0,0.0113799]
[1766696687802,0.0248667,87948.0,87935.0,0.0113799]
[1766696688018,0.0248667,87947.0,87935.0,0.0113799]
[1766696688320,0.0248667,87946.0,87935.0,0.0113799]
[1766696688514,0.0248667,87945.0,87935.0,0.0113799]
[1766696688716,0.0248667,87944.0,87935.0,0.0113799]
[1766696688919,0.0248667,87943.0,87935.0,0.0113799]
[1766696689118,0.0113781,87950.0,87935.0,0.0113799]
[1766696690109,0.05704,87952.0,87940.0,0.0113792]
[1766696690312,0.05704,87952.0,87940.0,0.0413792]
[1766696692416,0.05704,87952.0,87940.0,0.0293792]
[1766696693219,0.05704,87952.0,87940.0,0.0407584]
[1766696699514,0.05704,87952.0,87940.0,0.0297584]
[1766696700422,0.05704,87952.0,87943.0,0.0113788]
[1766696701324,0.02477387,87951.0,87943.0,0.0113788]
[1766696701520,0.02477387,87950.0,87943.0,0.0113788]
[1766696701721,0.02477387,87949.0,87943.0,0.0113788]
[1766696701921,0.02477387,87948.0,87943.0,0.0113788]
[1766696702121,0.02477387,87947.0,87943.0,0.0113788]
[1766696702421,0.05704,87952.0,87944.0,0.01134]
[1766696702624,0.02477235,87951.0,87944.0,0.01134]
[1766696702818,0.05704,87952.0,87930.0,0.09676]
[1766696702819,0.0113781,87949.0,87930.0,0.09676]
[1766696703028,0.02477235,87948.0,87930.0,0.12676]
[1766696703619,0.0113784,87947.0,87933.0,0.0113801]
[1766696703827,0.02477235,87946.0,87933.0,0.0413801]
[1766696704323,0.0113787,87945.0,87933.0,0.03]
[1766696704922,0.0113783,87948.0,87933.0,0.0413802]
[1766696705230,0.02477376,87947.0,87933.0,0.0413802]
[1766696705538,0.02477376,87946.0,87933.0,0.0413802]
[1766696705727,0.02477376,87945.0,87933.0,0.0413802]
[1766696705916,0.0113783,87948.0,87933.0,0.0413802]
[1766696706113,0.02477487,87947.0,87933.0,0.0413802]
[1766696706318,0.02477487,87946.0,87933.0,0.0413802]
[1766696706624,0.02477487,87945.0,87933.0,0.0413802]
[1766696706824,0.0113783,87948.0,87933.0,0.0413802]
[1766696707026,0.02477622,87947.0,87933.0,0.0413802]
[1766696707227,0.02477622,87946.0,87933.0,0.0413802]
[1766696707429,0.02477622,87945.0,87933.0,0.0413802]
[1766696707829,0.01154885,87949.0,87933.0,0.0413802]
[1766696708028,0.02477784,87948.0,87933.0,0.0413802]
[1766696708220,0.02477784,87947.0,87935.0,0.0113799]
[1766696708420,0.02477784,87946.0,87935.0,0.0413799]
[1766696708625,0.02477784,87945.0,87935.0,0.0413799]
[1766696708827,0.00017065,87949.0,87937.0,0.0113797]
[1766696709029,0.02477977,87948.0,87937.0,0.0413797]
[1766696709223,0.02477977,87947.0,87937.0,0.0413797]
[1766696709430,0.02477977,87946.0,87937.0,0.0413797]
[1766696709630,0.02477977,87945.0,87937.0,0.0413797]
[1766696709830,0.00017065,87949.0,87937.0,0.0413797]
[1766696710029,0.02478206,87948.0,87937.0,0.0413797]
[1766696710332,0.02478206,87947.0,87937.0,0.0413797]
[1766696710522,0.02478206,87946.0,87937.0,0.03]
[1766696710722,0.02478206,87945.0,87937.0,0.03]
[1766696711038,0.00017065,87949.0,87937.0,0.03]
[1766696711332,0.02477661,87948.0,87937.0,0.03]
[1766696711518,0.02477661,87947.0,87937.0,0.01]
[1766696711720,0.02477661,87946.0,87937.0,0.01]
[1766696711924,0.02477661,87945.0,87937.0,0.01]
[1766696712120,0.02477661,87944.0,87937.0,0.01]
[1766696712416,0.00017065,87949.0,87937.0,0.01]
[1766696712621,0.02478137,87948.0,87937.0,0.01]
[1766696712826,0.02478137,87947.0,87937.0,0.01]
[1766696713122,0.02478137,87946.0,87937.0,0.01]
[1766696713322,0.02478137,87945.0,87937.0,0.01]
[1766696713522,0.02478137,87944.0,87937.0,0.01]
[1766696713724,0.0113783,87948.0,87937.0,0.01]
[1766696713924,0.02478344,87947.0,87937.0,0.01]
[1766696714126,0.02478344,87946.0,87937.0,0.01]
[1766696714331,0.02478344,87945.0,87937.0,0.01]
[1766696714524,0.02478344,87944.0,87937.0,0.01]
[1766696714724,0.02478344,87943.0,87937.0,0.01]
[1766696714927,0.0113783,87948.0,87937.0,0.01]
[1766696715127,0.00017065,87949.0,87937.0,0.01]
[1766696715128,0.02478591,87947.0,87937.0,0.01]
[1766696715337,0.02478591,87946.0,87937.0,0.01]
[1766696715533,0.02478591,87945.0,87937.0,0.01]
[1766696715833,0.02478591,87944.0,87937.0,0.01]
[1766696716035,0.02478591,87943.0,87937.0,0.01]
[1766696716234,0.02478591,87942.0,87937.0,0.01]
[1766696716426,0.00017065,87949.0,87937.0,0.01]
[1766696716735,0.02479251,87948.0,87937.0,0.01]
[1766696716926,0.02479251,87947.0,87937.0,0.01]
[1766696717125,0.02479251,87946.0,87937.0,0.01]
[1766696717328,0.02479251,87945.0,87937.0,0.01]
[1766696717534,0.02479251,87944.0,87937.0,0.01]
[1766696717755,0.00017065,87949.0,87940.0,0.0113792]
[1766696718228,0.00017065,87949.0,87940.0,0.0413792]
[1766696718432,0.00017065,87949.0,87940.0,0.0113792]
[1766696718635,0.00017065,87949.0,87931.0,0.00017065]
[1766696718836,0.00017065,87949.0,87931.0,0.03017065]
[1766696719735,0.00017065,87949.0,87938.0,0.0113795]
[1766696719936,0.00017065,87949.0,87938.0,0.0413795]
[1766696720235,0.00017065,87949.0,87938.0,0.03]
[1766696720431,0.05704,87951.0,87941.0,0.011379]
[1766696720736,0.05704,87951.0,87943.0,0.0113789]
[1766696720928,0.00227395,87953.0,87943.0,0.0113789]
[1766696721126,0.05704,87951.0,87943.0,0.0113789]
[1766696721436,0.00227395,87953.0,87943.0,0.0113789]
[1766696721628,0.05704,87951.0,87943.0,0.0113789]
[1766696722933,0.00227395,87953.0,87945.0,0.0113786]
[1766696723139,0.05704,87954.0,87945.0,0.03]
[1766696723340,0.1181928,87958.0,87945.0,0.03]
[1766696724328,0.1181928,87958.0,87945.0,0.0413786]
[1766696725143,0.05704,87958.0,87945.0,0.0413786]
[1766696725846,0.0611528,87959.0,87945.0,0.0323786]
[1766696726041,0.05704,87958.0,87949.0,0.07769555]
[1766696726240,0.05704,87958.0,87948.0,0.0113782]
[1766696729643,0.02461897,87957.0,87948.0,0.0113782]
[1766696729846,0.02461897,87956.0,87950.0,0.011378]
[1766696730040,0.02461897,87955.0,87950.0,0.011378]
[1766696730345,0.02461897,87954.0,87950.0,0.011378]
[1766696730546,7e-08,87953.0,87950.0,0.011378]
[1766696730745,0.05704,87958.0,87950.0,0.011378]
[1766696731435,0.02645033,87966.0,87950.0,0.011378]
[1766696731636,0.15372,87965.0,87950.0,0.011378]
[1766696732754,0.15372,87965.0,87949.0,0.00017055]
[1766696733341,0.15372,87965.0,87950.0,0.011378]
[1766696733841,0.0113762,87964.0,87950.0,0.011378]
[1766696734841,0.15372,87963.0,87950.0,0.011378]
[1766696736648,0.0611528,87975.0,87958.0,0.0113769]
[1766696736852,0.057,87973.0,87960.0,0.07769555]
[1766696737052,0.057,87973.0,87960.0,0.10769555]
[1766696737249,0.057,87973.0,87960.0,0.03]
[1766696738145,0.00022734,87974.0,87960.0,0.0413766]
[1766696738345,0.15372,87973.0,87960.0,0.0413766]
[1766696740048,0.057,87972.0,87960.0,0.0183766]
[1766696741544,0.057,87972.0,87960.0,0.09607215]
[1766696741853,0.00022734,87974.0,87960.0,0.09607215]
[1766696742355,0.057,87973.0,87960.0,0.09607215]
[1766696743659,0.00022734,87974.0,87962.0,0.0113764]
[1766696743953,0.057,87973.0,87962.0,0.0113764]
[1766696744857,0.00022734,87974.0,87960.0,0.07769555]
[1766696745163,0.00022734,87974.0,87960.0,0.03]
[1766696745958,0.00022734,87974.0,87963.0,0.0113762]
[1766696746456,0.00022734,87974.0,87965.0,0.011376]
[1766696746659,0.057,87973.0,87965.0,0.011376]
[1766696746955,0.057,87973.0,87963.0,0.001376]
[1766696748245,0.057,87973.0,87965.0,0.011376]
[1766696753661,0.055624,87973.0,87965.0,0.011376]
[1766696754061,0.055624,87973.0,87960.0,0.06407155]
[1766696754257,0.055624,87973.0,87963.0,0.0113762]
[1766696756258,0.055624,87973.0,87960.0,0.07544815]
[1766696756467,0.055624,87973.0,87960.0,0.03]
[1766696756657,0.0113755,87970.0,87960.0,0.03]
[1766696756858,0.0113755,87970.0,87955.0,0.0113773]
[1766696757060,0.0113755,87970.0,87955.0,0.0413773]
[1766696759767,0.00022734,87974.0,87901.0,0.08198786]
[1766696759970,0.00022734,87974.0,87788.0,0.1993]
[1766696759971,0.07769555,87920.0,87895.0,0.011385]
[1766696760270,0.00016,87919.0,87902.0,0.0113841]
[1766696760666,0.00016,87919.0,87901.0,0.0113843]
[1766696760864,0.0265548,87918.0,87901.0,0.04155485]
[1766696761071,1e-08,87918.0,87908.0,0.07769555]
[1766696761258,0.05712,87926.0,87908.0,0.07769555]
[1766696761463,0.05712,87926.0,87896.0,0.15384]
[1766696761464,0.0113814,87924.0,87904.0,0.0113839]
[1766696761673,0.02655284,87923.0,87905.0,0.05712]
[1766696761867,0.0113814,87924.0,87905.0,0.05712]
[1766696762070,0.02655272,87923.0,87906.0,0.00017055]
[1766696762265,0.0113814,87924.0,87906.0,0.00017055]
[1766696763170,0.05712,87926.0,87906.0,0.00017055]
[1766696763171,0.0113818,87921.0,87906.0,0.00017055]
[1766696766175,0.07769555,87920.0,87899.0,0.05716]
[1766696766479,0.0685012,87926.0,87889.0,0.05716]
[1766696766480,0.011384,87904.0,87889.0,0.05716]
[1766696766667,0.011384,87904.0,87889.0,0.08716]
[1766696767573,0.07769555,87900.0,87879.0,0.09676]
[1766696767779,0.05716,87899.0,87879.0,0.03]
[1766696767968,0.05716,87899.0,87879.0,0.0413872]
[1766696768678,0.05716,87899.0,87880.0,0.00017065]
[1766696768878,0.05716,87899.0,87880.0,0.02017065]
[1766696770580,0.05716,87899.0,87888.0,0.011386]
[1766696770775,0.00017065,87905.0,87888.0,0.011386]
[1766696770971,0.15392,87904.0,87888.0,0.041386]
[1766696771176,0.05716,87903.0,87888.0,0.015386]
[1766696771779,0.05716,87903.0,87880.0,0.0778662]
[1766696771981,0.05716,87903.0,87880.0,0.1078662]
[1766696772180,0.05716,87903.0,87886.0,0.0113862]
[1766696772786,0.05716,87903.0,87874.0,0.09676]
[1766696772787,0.0113864,87886.0,87874.0,0.09676]
[1766696772964,0.0113862,87887.0,87874.0,0.09676]
[1766696775082,0.0113865,87885.0,87874.0,0.09676]
[1766696775378,0.0113865,87885.0,87872.0,0.00017065]
[1766696775379,0.0113878,87875.0,87872.0,5e-08]
[1766696775579,0.0113881,87873.0,87860.0,0.05716]
[1766696776471,0.0113879,87874.0,87860.0,0.08716]
[1766696776673,8.043e-05,87872.0,87860.0,0.08716]
[1766696777373,8.043e-05,87872.0,87860.0,0.0985496]
[1766696777578,8.043e-05,87872.0,87863.0,0.0113892]
[1766696777880,4.3e-07,87872.0,87863.0,0.0413892]
[1766696780086,0.0113866,87884.0,87866.0,0.0113889]
[1766696780287,0.0113869,87882.0,87863.0,0.0113892]
[1766696780486,0.1081869,87882.0,87863.0,0.0413892]
[1766696781095,0.0113871,87880.0,87863.0,0.0413892]
[1766696786085,0.00023154,87881.0,87863.0,0.03]
[1766696786286,0.00023154,87881.0,87860.0,0.05716]
[1766696786489,0.0113882,87872.0,87860.0,0.05716]
[1766696786694,0.0113882,87872.0,87860.0,0.08716]
[1766696787584,0.0113878,87875.0,87860.0,0.08716]
[1766696789897,0.011388,87873.0,87860.0,0.08716]
[1766696790298,0.0113877,87876.0,87861.0,0.0113895]
[1766696790501,0.0113877,87876.0,87861.0,0.0413895]
[1766696790998,0.0113877,87876.0,87861.0,0.0113895]
[1766696791198,0.0113877,87876.0,87861.0,0.0413895]
[1766696791393,0.00023154,87881.0,87861.0,0.03]
[1766696791588,1.54e-06,87881.0,87867.0,0.0113887]
[1766696791784,1.54e-06,87881.0,87867.0,0.0985487]
[1766696792199,1.54e-06,87881.0,87868.0,0.0113886]
[1766696792395,1.54e-06,87881.0,87868.0,0.03]
[1766696794699,1.54e-06,87881.0,87866.0,0.0113888]
[1766696794900,1.54e-06,87881.0,87866.0,0.0413888]
[1766696795296,0.01138854,87881.0,87866.0,0.03]
[1766696796903,1.54e-06,87881.0,87866.0,0.03]
[1766696797094,0.0113883,87871.0,87866.0,0.03]
[1766696797295,0.0113883,87871.0,87860.0,0.0968]
[1766696797499,0.0113883,87871.0,87860.0,0.1268]
[1766696798004,0.0113882,87872.0,87860.0,0.1268]
[1766696803607,0.02722989,87871.0,87860.0,0.1268]
[1766696803806,0.02722989,87870.0,87860.0,0.1268]
[1766696804005,0.02722989,87869.0,87860.0,0.1268]
[1766696804308,0.02722989,87868.0,87860.0,0.1268]
[1766696804508,0.02722989,87867.0,87860.0,0.1268]
[1766696804707,0.02722989,87866.0,87860.0,0.1268]
[1766696804912,0.0113877,87876.0,87860.0,0.1268]
[1766696805108,0.0113879,87874.0,87860.0,0.1268]
[1766696805504,0.06114335,87878.0,87860.0,0.1268]
[1766696805704,0.06114335,87879.0,87860.0,0.1268]
[1766696805911,0.07253045,87880.0,87860.0,0.1268]
[1766696806300,0.07253045,87880.0,87864.0,0.0113891]
[1766696806705,0.07253045,87880.0,87864.0,0.0413891]
[1766696808213,0.0113871,87880.0,87864.0,0.0413891]
[1766696808517,1.54e-06,87881.0,87864.0,0.03]
[1766696808709,1.54e-06,87881.0,87869.0,0.0113884]
[1766696808909,1.54e-06,87881.0,87869.0,0.0685484]
[1766696810114,1.54e-06,87881.0,87869.0,0.0985484]
[1766696810308,1.54e-06,87881.0,87869.0,0.0685484]
[1766696815621,1.54e-06,87881.0,87869.0,0.05716]
[1766696817019,0.02688401,87880.0,87869.0,0.05716]
[1766696817214,0.02688401,87879.0,87869.0,0.05716]
[1766696817412,0.02688401,87878.0,87869.0,0.05716]
[1766696817609,0.02688401,87877.0,87869.0,0.05716]
[1766696817820,0.02688401,87876.0,87869.0,0.05716]
[1766696818021,0.02688401,87875.0,87869.0,0.05716]
[1766696818222,1.54e-06,87881.0,87869.0,0.05716]
[1766696819908,1.54e-06,87881.0,87869.0,0.08716]
[1766696820920,0.03719489,87889.0,87874.0,0.0113877]
[1766696821125,0.0113858,87890.0,87874.0,0.0413877]
[1766696821422,0.0113861,87888.0,87874.0,0.03]
[1766696822014,0.00017065,87890.0,87874.0,0.03]
[1766696822218,0.00017065,87890.0,87875.0,0.0113877]
[1766696822419,0.00017065,87890.0,87876.0,0.05716]
[1766696822616,0.00017065,87890.0,87876.0,0.08716]
[1766696823224,0.00017065,87890.0,87876.0,0.06816]
[1766696824223,0.00017065,87890.0,87877.0,0.0113875]
[1766696824423,0.06263297,87901.0,87877.0,0.0113875]
[1766696824424,0.0113842,87903.0,87885.0,0.0113864]
[1766696824727,0.0113842,87903.0,87887.0,0.0113861]
[1766696825129,0.0113842,87903.0,87886.0,0.05712]
[1766696825423,0.01155485,87903.0,87886.0,0.08729065]
[1766696826126,0.01155485,87903.0,87886.0,0.09867685]
[1766696826323,0.0113844,87901.0,87886.0,0.09867685]
[1766696827129,0.00017065,87903.0,87888.0,0.011386]
[1766696828914,0.0113843,87902.0,87886.0,0.05729065]
[1766696829132,0.0113843,87902.0,87886.0,0.08729065]
[1766696830227,0.02648991,87901.0,87886.0,0.08729065]
[1766696830430,0.02648991,87900.0,87886.0,0.06729065]
[1766696830624,0.02648991,87899.0,87886.0,0.06729065]
[1766696830824,0.0113843,87902.0,87886.0,0.06729065]
[1766696831135,0.0113848,87898.0,87886.0,0.06729065]
[1766696832223,0.0113842,87902.0,87888.0,0.011386]
[1766696832532,0.02610986,87901.0,87888.0,0.041386]
[1766696832831,0.02610986,87900.0,87888.0,0.041386]
[1766696833032,0.02610986,87899.0,87888.0,0.041386]
[1766696833217,0.0113842,87902.0,87888.0,0.041386]
[1766696833422,0.02610811,87901.0,87888.0,0.041386]
[1766696833622,0.02610811,87900.0,87888.0,0.041386]
[1766696833823,0.02610811,87899.0,87888.0,0.041386]
[1766696834024,0.0113842,87902.0,87888.0,0.041386]
[1766696834324,0.02610839,87901.0,87888.0,0.041386]
[1766696834525,0.02610839,87900.0,87888.0,0.041386]
[1766696834733,0.02610839,87899.0,87888.0,0.041386]
[1766696834933,0.02610839,87898.0,87888.0,0.041386]
[1766696835123,0.0113842,87902.0,87888.0,0.041386]
[1766696835326,0.02610798,87901.0,87888.0,0.041386]
[1766696835526,0.0113842,87902.0,87888.0,0.041386]
[1766696835527,0.02610798,87900.0,87888.0,0.041386]
[1766696835833,0.02610798,87899.0,87888.0,0.041386]
[1766696836022,0.02610798,87898.0,87888.0,0.041386]
[1766696836222,0.0113842,87902.0,87888.0,0.041386]
[1766696836423,0.02610706,87901.0,87888.0,0.041386]
[1766696836633,0.02610706,87900.0,87888.0,0.041386]
[1766696836834,0.02610706,87899.0,87888.0,0.041386]
[1766696837038,0.02610706,87898.0,87888.0,0.041386]
[1766696837335,0.0113845,87900.0,87888.0,0.03]
[1766696837535,0.02610749,87899.0,87888.0,0.03]
[1766696837738,0.02610749,87898.0,87888.0,0.03]
[1766696837936,0.0113845,87900.0,87888.0,0.03]
[1766696838126,0.02610744,87899.0,87888.0,0.03]
[1766696838325,0.02610744,87898.0,87888.0,0.03]
[1766696838526,0.0113845,87900.0,87888.0,0.03]
[1766696838825,0.02610811,87899.0,87888.0,0.03]
[1766696839026,0.02610811,87898.0,87888.0,0.03]
[1766696839226,0.0113845,87900.0,87888.0,0.03]
[1766696839538,0.0113847,87898.0,87888.0,0.03]
[1766696839725,0.011385,87896.0,87888.0,0.03]
[1766696841338,0.0113847,87899.0,87888.0,0.03]
[1766696841539,0.02611103,87898.0,87888.0,0.03]
[1766696841726,0.02611103,87897.0,87888.0,0.03]
[1766696841927,0.0113847,87899.0,87888.0,0.03]
[1766696842229,0.02611105,87898.0,87888.0,0.03]
[1766696842529,0.02611105,87897.0,87888.0,0.03]
[1766696842731,0.0113847,87899.0,87888.0,0.03]
[1766696842932,0.02611281,87898.0,87888.0,0.03]
[1766696843131,0.02611281,87897.0,87888.0,0.03]
[1766696843335,0.0113847,87899.0,87888.0,0.03]
[1766696843537,0.02611496,87898.0,87888.0,0.03]
[1766696843734,0.02611496,87897.0,87888.0,0.03]
[1766696843935,0.0113847,87899.0,87888.0,0.03]
[1766696844239,0.02611496,87898.0,87888.0,0.03]
[1766696844539,0.02611496,87897.0,87888.0,0.03]
[1766696844839,0.0113847,87899.0,87888.0,0.03]
[1766696845036,0.02611738,87898.0,87888.0,0.03]
[1766696845231,0.02611738,87897.0,87888.0,0.03]
[1766696845427,0.02611738,87896.0,87888.0,0.03]
[1766696845628,0.0113847,87899.0,87888.0,0.03]
[1766696845829,0.02612054,87898.0,87888.0,0.03]
[1766696846038,0.02612054,87897.0,87888.0,0.03]
[1766696846237,0.02612054,87896.0,87888.0,0.03]
[1766696846433,0.0113847,87899.0,87888.0,0.03]
[1766696846734,0.02612451,87898.0,87888.0,0.03]
[1766696846934,0.02612451,87897.0,87888.0,0.03]
[1766696847134,0.02612451,87896.0,87888.0,0.03]
[1766696847337,0.0113847,87899.0,87888.0,0.03]
[1766696847535,0.02612902,87898.0,87888.0,0.03]
[1766696847835,0.02612902,87897.0,87888.0,0.03]
[1766696848030,0.02612902,87896.0,87888.0,0.03]
[1766696848231,0.0113847,87899.0,87888.0,0.03]
[1766696848431,0.02613447,87898.0,87888.0,0.03]
[1766696848639,0.0113847,87899.0,87888.0,0.03]
[1766696848640,0.02613447,87897.0,87888.0,0.03]
[1766696848839,0.02613447,87896.0,87888.0,0.03]
[1766696849040,0.02613447,87895.0,87888.0,0.03]
[1766696849339,0.02614128,87894.0,87888.0,0.03]
[1766696849541,0.0113847,87899.0,87888.0,0.03]
[1766696849738,0.02614129,87898.0,87888.0,0.03]
[1766696849941,0.02614129,87897.0,87888.0,0.03]
[1766696850127,0.02614129,87896.0,87888.0,0.03]
[1766696850333,0.02614129,87895.0,87888.0,0.03]
[1766696850641,0.02614129,87894.0,87888.0,0.03]
[1766696850842,0.0113844,87901.0,87888.0,0.03]
[1766696851042,0.02614202,87900.0,87888.0,0.03]
[1766696851232,0.02614202,87899.0,87888.0,0.03]
[1766696851433,0.02614202,87898.0,87888.0,0.03]
[1766696851635,0.02614202,87897.0,87888.0,0.03]
[1766696851830,0.02614202,87896.0,87888.0,0.03]
[1766696852034,0.02614202,87895.0,87888.0,0.03]
[1766696852243,0.02615326,87894.0,87888.0,0.03]
[1766696852443,0.0113845,87900.0,87888.0,0.03]
[1766696852647,0.02615329,87899.0,87888.0,0.03]
[1766696852940,0.02615329,87898.0,87888.0,0.03]
[1766696853142,0.02615329,87897.0,87888.0,0.03]
[1766696853342,0.02615329,87896.0,87888.0,0.03]
[1766696853544,0.0113845,87900.0,87888.0,0.03]
[1766696853545,0.02615329,87895.0,87888.0,0.03]
[1766696853737,0.02615329,87894.0,87888.0,0.03]
[1766696853942,0.02615329,87893.0,87888.0,0.03]
[1766696854138,0.10473089,87900.0,87888.0,0.03]
[1766696854336,0.02616081,87899.0,87888.0,0.03]
[1766696854531,0.02616081,87898.0,87888.0,0.03]
[1766696854735,0.02616081,87897.0,87888.0,0.03]
[1766696854949,0.02616081,87896.0,87888.0,0.03]
[1766696855244,0.02616081,87895.0,87888.0,0.03]
[1766696855446,0.02616081,87894.0,87888.0,0.03]
[1766696855638,0.02616081,87893.0,87888.0,0.03]
[1766696855839,0.0113845,87900.0,87888.0,0.03]
[1766696858859,0.0113845,87900.0,87888.0,0.041386]
[1766696859554,0.01155475,87903.0,87888.0,0.041386]
[1766696859756,0.0113844,87901.0,87888.0,0.041386]
[1766696860956,0.0113842,87902.0,87888.0,0.041386]
[1766696862466,0.00017065,87903.0,87888.0,0.03]
[1766696863364,0.00017065,87903.0,87889.0,0.0113858]
[1766696863564,0.00017065,87903.0,87889.0,0.0413858]
[1766696864162,0.00017065,87903.0,87891.0,0.0113856]
[1766696864367,0.00017065,87903.0,87891.0,0.0413856]
[1766696866265,0.06121246,87905.0,87891.0,0.0413856]
[1766696867863,0.08727526,87905.0,87891.0,0.0413856]
[1766696872274,0.0260628,87904.0,87891.0,0.0413856]
[1766696872469,0.0260628,87903.0,87891.0,0.0413856]
[1766696872669,0.0260628,87902.0,87891.0,0.0413856]
[1766696872862,0.0260628,87901.0,87891.0,0.03]
[1766696873064,0.0260628,87900.0,87891.0,0.03]
[1766696873263,0.0260628,87899.0,87891.0,0.03]
[1766696873576,0.0260628,87898.0,87892.0,0.01137]
[1766696873773,0.0260628,87897.0,87892.0,0.01137]
[1766696873974,0.0260628,87896.0,87892.0,0.01137]
[1766696874159,0.0260628,87895.0,87892.0,0.01137]
[1766696874363,0.0113841,87903.0,87892.0,0.01137]
[1766696874364,0.0260628,87894.0,87892.0,0.01137]
[1766696874564,0.0260628,87893.0,87892.0,0.01137]
[1766696875369,0.0260628,87893.0,87886.0,0.03729065]
[1766696875577,0.0260628,87892.0,87886.0,0.06729065]
[1766696875878,0.0113847,87899.0,87886.0,0.06729065]
[1766696876080,0.02605666,87898.0,87886.0,0.06729065]
[1766696876267,0.02605666,87897.0,87886.0,0.06729065]